Workbook

Sheet coverdit

Sheet intro
J1: โปรแกรมออกแบบรางระบายน้ำ
J2: RC DITCH V.1
J3: ผมสร้างโปรแกรมขึ้นมาไว้ออกแบบรางระบายน้ำคอนกรีตเสริมเหล็กภายในชุมชน
J4: โดยหลักการออกแบบจำเป็นต้องรู้ปริมาณน้ำ เช่น ปริมาณน้ำฝน ปริมาณน้ำเสียในพื้นที่
J5: ซึ่งโปรแกรมออกแบบรางระบายน้ำ V.1 ยังไม่ได้นำปริมาณน้ำมาเป็นข้อกำหนดในการออกแบบ
J6: ในอนาคตข้าพเจ้าจะพัฒนาโปรแกรมให้สมบูรณ์ครบถ้วนเป็นไปตามมาตราฐาน
J7: ข้อกำหนดหลักเกณฑ์ในการออกแบบมาตราฐานทางระบายน้ำของ อปท.
J8: คุณสมบัติ
J9: - สามารถออกแบบฝารางระบายชนิดฝาเหล็กตะแกรง และฝาคอนกรีตเสริมเหล็ก
J10: - สามารถออกแบบการรับน้ำหนักได้ไม่เกิน 5 ตัน
J11: - สามารถออกแบบขนาดรางระบายได้สูงสุดไม่เกิน 2.00x2.00 เมตร
J12: การใช้งาน
J13: - ใส่ข้อมูลค่าการออกแบบในช่อง เท่านั้น
J14: ผู้สร้างโปรแกรม
J15: ชื่อ ชัยสิทธิ์ เปี่ยมสุข (ช่างกุ้ง)
J16: ที่ทำงาน อบต.โพธิ์ประสาท อ.ไพศาลี จ.นครสวรรค์
J17: ตำแหน่ง นายช่างโยธาชำนาญงาน (วิชาชีพวิศวกรรมควบคุม สาขาโยธา)
J18: ผู้ดูแลเว็บไซต์ "โยธาท้องถิ่นนครสวรรค์" | O18: www.lifecivil.com
J19: อีเมล kung-engineer@hotmail.co.th

Sheet dit
I2: PROJECT | N2: รางระบายน้ำ
I3: LOCATION | N3: นครสวรรค์
I4: OWNER | N4: เทศบาล
I5: DESIGN | N5: ชัยสิทธิ์ เปี่ยมสุข | AG5: LICENSE | AK5: ภย.xxxxx
H7: RC DITCH V.1
H9: INPUT DATA PARAMETERS & CONSTANTS :
I10: fc' = | J10: 173 | L10: Kg./cm.2 | P10: ; | R10: Es = | S10: 2100000 | V10: Kg./cm.2 | Y10: ; | Z10: n = | AA10: =ROUND(S10/S11,3) -> 10.561 | AC10: ; | AD10: j = | AE10: =ROUND(1-(AA11/3),3) -> 0.879
I11: fc = | J11: =ROUNDUP((J10*0.375),0) -> 65 | L11: Kg./cm.2 | P11: ; | R11: Ec = | S11: =ROUND(4270*(2.323^1.5)*(J10^0.5),0) -> 198850 | V11: Kg./cm.2 | Y11: ; | Z11: k = | AA11: =ROUND(1/(1+(J13/(AA10*J11))),3) -> 0.364 | AC11: ; | AD11: R = | AE11: =ROUND((J11/2)*AE10*AA11,2) -> 10.4 | AG11: Kg./cm.2
I12: fy = | J12: 2400 | L12: Kg./cm.2 | O12: =IF(J12<3000,">SR-24",IF(J12=3000,">SD-30",IF(J12>4000,">SD-50",">SD-40"))) -> >SR-24
I13: fs = | J13: =IF(J12=2400,1200,IF(J12=3000,1500,IF(J12=4000,1700,IF(J12=5000,1700,)))) -> 1200 | L13: Kg./cm.2
H15: INPUT DATA GRATING :
K16: Flat Bar t = | L16: 12 | N16: mm. | P16: ; | Q16: h= | R16: 100 | T16: mm. | V16: ; | W16: A= | X16: =ROUNDDOWN((L16*R16)/100,2) -> 12 | Z16: cm.2 | AB16: ; | AF16: Wheel Width = | AG16: 20 | AI16: cm. | AJ16: ; | AM16: Flat Bar@= | AN16: =ROUNDDOWN((AG16/AG17),0) -> 5 | AP16: bar.
K17: W flat bar = | L17: =ROUNDDOWN((AN16*7850)/10000,2) -> 3.92 | N17: Kg./m. | AF17: spacing = | AG17: 4 | AI17: cm.
K18: A flat bar = | L18: =ROUNDDOWN(AG17*AN16,2) -> 20 | N18: cm.2 | V18: Friction angle soil = | W18: 10 | Y18: degree | AO18: Unit weight of RC. = | AP18: 2400 | AR18: Kg./m.3
K19: lx = | L19: =ROUNDDOWN((L16/10*(R16/10)^3/12*AN16),2) -> 500 | N19: cm.4 | V19: Force Friction C= | W19: 0.5 | AO19: Unit weight of soil = | AP19: 1800 | AR19: Kg./m.3
K20: rx = | L20: =ROUNDDOWN((R16/10)/SQRT(12)*AN16,2) -> 14.43 | N20: cm. | V20: Coe.. of Earth Pressure = | W20: 0.5 | AO20: Unit weight of Surcharge = | AP20: 1000 | AR20: Kg./m.2
K21: sx = | L21: =ROUNDDOWN((L16/10*(R16/10)^2/6*AN16),2) -> 100 | N21: cm.3 | V21: Ka = tan2(45-α/2) = | W21: =(1-SIN(W18/180*3.14159))/(1+SIN(W18/180*3.14159)) -> 0.7040884018 | AO21: Unit weight of Water = | AP21: 1000 | AR21: Kg./m.3
AO22: Impact factor I = | AP22: 0.15
H23: INPUT DATA DITCH : | AO23: High Water HW. = | AP23: 0.5 | AR23: m.
I24: H = | J24: 2 | L24: m.
I25: B = | J25: 2 | L25: m.
I26: Th = | J26: 0.15 | L26: m.
I27: Tb = | J27: 0.15 | L27: m.
H30: DESIGN GRATING STEEL :
M31: Weight Truck Load = | N31: 5000 | Q31: Kg./wheel
M32: Grating Length = | N32: =ROUND(J25+J27,2) -> 2.15 | P32: m.
M33: ="Impact Load"&AP22*100&"% =" -> Impact Load15% = | N33: =ROUND(N31*AP22,2) -> 750 | P33: Kg.
M34: Load Truck = | N34: =ROUND((N31+N33),2) -> 5750 | Q34: Kg.
M35: Load Truck+Steel = | N35: =ROUND(N34+L17,2) -> 5753.92 | Q35: Kg.
M36: Load Flat Bar = | N36: =ROUND(N35/AN16,2) -> 1150.78 | Q36: Kg./bar
M37: Moment max = | N37: =ROUND((N36*(N32/2)*(N32/2))/N32,2) -> 618.54 | Q37: Kg.-m.
M38: Fb = | N38: =ROUND(0.6*J12,20) -> 1440 | Q38: Ksc.
M39: Sx = | N39: =ROUND((N37/N38)*100,2) -> 42.95 | P39: =IF(N39<Q39,"<",">") -> < | Q39: =L21 -> 100 | T39: =IF(N39<Q39,"OK","NG") -> OK
M40: KL/r = | N40: =ROUND(N32*100/(L20),2) -> 14.9 | P40: =IF(N40<Q40,"<",">") -> < | Q40: 300 | T40: =IF(N40<Q40,"OK","NG") -> OK | AG40: =IF(N32<=0.3,"No Cross bar ",IF(N32=0.4,"1-Cross bar Dia 8x8 mm.",IF(N32=0.5,"2-Cross bar Dia 8x8 mm.",IF(N32>=0.6,"3-Cross bar Dia 8x8 mm.")))) -> 3-Cross bar Dia 8x8 mm.
I44: PROJECT | N44: รางระบายน้ำ
I45: LOCATION | N45: นครสวรรค์
I46: OWNER | N46: เทศบาล
I47: DESIGN | N47: ชัยสิทธิ์ เปี่ยมสุข | AG47: LICENSE | AK47: ภย.xxxxx
H49: RC DITCH V.1
H51: DESIGN COVER RC :
M52: Thickness Cover = | N52: 0.15 | P52: m.
M53: Cover Rc. Length = | N53: =N32 -> 2.15 | P53: m. | Q53: (L)
M54: Cover Rc. Width = | N54: 0.3 | P54: m. | Q54: (W)
M55: Weight Cover Rc. = | N55: =ROUND(N52*N53*N54*AP18,2) -> 232.2 | P55: Kg.
M56: Load Truck+Ip = | N56: =N34 -> 5750 | Q56: Kg.
M57: S LOAD = | N57: =ROUND(N55+N56,2) -> 5982.2 | Q57: Kg.
M58: Moment max = | N58: =ROUND((N57*N53)/4,2) -> 3215.43 | Q58: Kg.-m.
M59: Shear max = | N59: =ROUND(N57/2,2) -> 2991.1 | Q59: Kg.
M60: Concrete Covering = | N60: =ROUND(N52/2,2) -> 0.08 | P60: cm.
M61: Thick. Depth min1 = | N61: =ROUND(((N58*100)/(AE11*100))^0.5,2) -> 17.58 | P61: cm.
M62: Thick. Depth min2 = | N62: =ROUND((100*N52)-N60,2) -> 14.92 | P62: cm. | Q62: =IF(N61<N62,"OK","NG") -> NG | R62: # USE Thick. | V62: =IF(N61<7,"7",IF(N61<10,"10",IF(N61<12,"12",IF(N61<15,"15",IF(N61<20,"20"))))) -> 20 | X62: cm. | Y62: (T) | Z62: =IF(N62<V62,"OK","NG") -> OK | AP62: =IF(AND(AB69="OK",AB70="OK"),"USE TYPE", "NO USE") -> NO USE | AX62: =V62/100 -> 0.2
H63: Check for shear :
O64: Vc = 0.29 (Sqrt) fc' bw d | P64: = | Q64: =ROUND(0.29*(J10^0.5)*100*V62,2) -> 7628.71 | T64: Kg. | U64: =IF(N59<Q64,"OK","NG") -> OK
H65: Design Reinforcement
M66: As min1 = | N66: =ROUND((14/J12)*100*V62,2) -> 11.67 | P66: cm.2 | S66: # USE As Max | W66: = | X66: =MAX(N66:O67) -> 15.24 | AA66: cm.2
M67: As min2 = | N67: =ROUND((N58*100)/(J13*AE10*V62),2) -> 15.24 | P67: cm.2 | AP67: =IF(AND(AN69="OK",AN70="OK"),"USE TYPE", "NO USE") -> USE TYPE
M68: 0.002bt = | N68: =ROUND(0.002*(N53*100)*(V62),2) -> 8.6 | P68: cm.2
H69: # USE main-1 | L69: =IF($J$12=2400,"RB","DB") -> RB | N69: 9 | P69: mm. | Q69: @ | R69: 0.05 | T69: m. | V69: AS' | W69: = | X69: =ROUND((1/R69)*((((22/7)*(N69*0.1)^2)/4)),2) -> 12.73 | Z69: cm.2 | AB69: =IF(X66<X69,"OK","NG") -> NG | AD69: # USE main-2 | AH69: AS' | AI69: = | AJ69: =ROUND((1/R69)*((((22/7)*(N69*0.1)^2)/4))*2,2) -> 25.46 | AL69: cm.2 | AN69: =IF(X66<AJ69,"OK","NG") -> OK
H70: # USE temp-1 | L70: =IF($J$12=2400,"RB","DB") -> RB | N70: 9 | P70: mm. | Q70: @ | R70: 0.05 | T70: m. | V70: AS' | W70: = | X70: =ROUND((1/R70)*((((22/7)*(N70*0.1)^2)/4)),2) -> 12.73 | Z70: cm.2 | AB70: =IF(N68<X70,"OK","NG") -> OK | AD70: # USE temp-2 | AH70: AS' | AI70: = | AJ70: =ROUND((1/R70)*((((22/7)*(N70*0.1)^2)/4))*2,2) -> 25.46 | AL70: cm.2 | AN70: =IF(N68<AJ70,"OK","NG") -> OK
I85: PROJECT | N85: รางระบายน้ำ
I86: LOCATION | N86: นครสวรรค์
I87: OWNER | N87: ชัยสิทธิ์ เปี่ยมสุข
I88: DESIGN | N88: กุ้ง | AG88: LICENSE | AK88: 999
H90: RC DITCH V.1
H92: DESIGN SIDE WALL RC :
M93: Side pressure soil = | N93: =ROUND(W20*W21*AP19*(J24-J26)*(J24-J26),2) -> 2168.77 | Q93: Kg.
M94: Side pressure water = | N94: =ROUND(0.5*(AP21*AP23)*AP23,2) -> 125 | Q94: Kg.
M95: Pressure Surcharger = | N95: =ROUND(W21*AP20*(J24-J26),2) -> 1302.56 | Q95: Kg.
M96: Moment max = | N96: =ROUND(N93*((J24-J26)/3)+(N94*(AP23/3))+(N95*((J24-J26)/2)),2) -> 2563.11 | Q96: Kg.-m.
M97: Shear max = | N97: =ROUND(N93+N94+N95,2) -> 3596.33 | Q97: Kg.
M98: Concrete Covering = | N98: =ROUND(J27/2,2) -> 0.08 | P98: cm. | AP98: =IF(AND(AB107="OK",AB108="OK"),"USE TYPE", "NO USE") -> NO USE
M99: Thick. Depth min1 = | N99: =ROUND(((N96*100)/(AE11*100))^0.5,2) -> 15.7 | P99: cm.
M100: Thick. Depth min2 = | N100: =ROUND((100*J27)-N98,2) -> 14.92 | P100: cm. | Q100: =IF(N99<N100,"OK","NG") -> NG | R100: # USE Thick. | V100: =IF(N99<7,"7",IF(N99<10,"10",IF(N99<12,"12",IF(N99<15,"15",IF(N99<20,"20"))))) -> 20 | X100: cm. | Y100: (Tb) | Z100: =IF(N100<V100,"OK","NG") -> OK | AX100: =V100/100 -> 0.2
H101: Check for shear :
O102: Vc = 0.29 (Sqrt) fc' bw d | P102: = | Q102: =ROUND(0.29*(J10^0.5)*100*V100,2) -> 7628.71 | T102: Kg. | U102: =IF(N97<Q102,"OK","NG") -> OK
H103: Design Reinforcement
M104: As min1 = | N104: =ROUND((14/J12)*100*V100,2) -> 11.67 | P104: cm.2 | S104: # USE As Max | W104: = | X104: =MAX(N104:O105) -> 12.15 | AA104: cm.2
M105: As min2 = | N105: =ROUND((N96*100)/(J13*AE10*V100),2) -> 12.15 | P105: cm.2 | AP105: =IF(AND(AN107="OK",AN108="OK"),"USE TYPE", "NO USE") -> USE TYPE
M106: 0.0025t = | N106: =ROUND((0.0025*100)*(V100),2) -> 5 | P106: cm.2 | R106: ; | U106: As min3 = | V106: =ROUND((2*N106)/3,2) -> 3.33 | X106: cm.2
H107: # USE Verti...-1 | L107: =IF(J12=2400,"RB","DB") -> RB | N107: 9 | P107: mm. | Q107: @ | R107: 0.1 | T107: m. | V107: AS' | W107: = | X107: =ROUND((1/R107)*((((22/7)*(N107*0.1)^2)/4)),2) -> 6.36 | Z107: cm.2 | AB107: =IF(X104<X107,"OK","NG") -> NG | AD107: # USE Verti...-2 | AH107: AS' | AI107: = | AJ107: =ROUND((1/R107)*((((22/7)*(N107*0.1)^2)/4))*2,2) -> 12.73 | AL107: cm.2 | AN107: =IF(X104<AJ107,"OK","NG") -> OK
H108: # USE Hori..-1 | L108: =IF(J12=2400,"RB","DB") -> RB | N108: 9 | P108: mm. | Q108: @ | R108: 0.25 | T108: m. | V108: AS' | W108: = | X108: =ROUND((1/R108)*((((22/7)*(N108*0.1)^2)/4)),2) -> 2.55 | Z108: cm.2 | AB108: =IF(V106<X108,"OK","NG") -> NG | AD108: # USE Hori..-2 | AH108: AS' | AI108: = | AJ108: =ROUND((1/R108)*((((22/7)*(N108*0.1)^2)/4))*2,2) -> 5.09 | AL108: cm.2 | AN108: =IF(V106<AJ108,"OK","NG") -> OK
I125: PROJECT | N125: ชัยสิทธิ์ เปี่ยมสุข
I126: LOCATION | N126: นครสวรรค์
I127: OWNER | N127: เทศบาล
I128: DESIGN | N128: กุ้ง | AG128: LICENSE | AK128: 999
H130: RC DITCH V.1
H132: DESIGN BASE DITCH RC. : | P132: For | Q132: 1 | S132: m.
M133: Thickness Base = | N133: =J26 -> 0.15 | P133: m. | Q133: (Th)
M134: Base Width = | N134: =ROUND(J25+AX100*2,2) -> 2.4 | P134: m. | Q134: (B+Tb)
M135: Weight Base Rc. = | N135: =ROUND(N133*N134*Q132*AP18,2) -> 864 | P135: Kg.
M136: Weight Wall Rc. = | N136: =ROUND((AX100*J24)*AP18*2,2) -> 1920 | P136: Kg.
M137: Weight Cover Rc. = | N137: =AX62*N53*Q132*AP18 -> 1032 | P137: Kg.
M138: Load Truck+Ip = | N138: =N56 -> 5750 | P138: Kg. | AO138: =IF(AND(AB152="OK",AB1088="OK"),"USE TYPE", "NO USE") -> NO USE
M139: Pressure Surcharger = | N139: =N95 -> 1302.56 | Q139: Kg.
M140: S LOAD = | N140: =ROUND(N135+N136+N137+N138+N139,2) -> 10868.56
M141: Moment max = | N141: =ROUND((N140*(N134)^2)/8,2) -> 7825.36 | Q141: Kg.-m.
M142: Shear max = | N142: =ROUND(N140/2,2) -> 5434.28 | Q142: Kg.
M143: Concrete Covering = | N143: =ROUND(N133/2,2) -> 0.08 | P143: cm.
M144: Thick. Depth min1 = | N144: =ROUND(((N141*100)/(AE11*100))^0.5,2) -> 27.43 | P144: cm.
M145: Thick. Depth min2 = | N145: =ROUND((100*N133)-N143,2) -> 14.92 | P145: cm. | Q145: =IF(N144<N145,"OK","NG") -> NG | R145: # USE Thick. | V145: =IF(N144<7,"7",IF(N144<10,"10",IF(N144<12,"12",IF(N144<15,"15",IF(N144<20,"20",IF(N144<25,"25",IF(N144<30,"30"))))))) -> 30 | X145: cm. | Y145: (Th) | Z145: =IF(N145<V145,"OK","NG") -> OK | AO145: =IF(AND(AN152="OK",AN153="OK"),"USE TYPE", "NO USE") -> USE TYPE | AX145: =V145/100 -> 0.3
H146: Check for shear :
O147: Vc = 0.29 (Sqrt) fc' bw d | P147: = | Q147: =ROUND(0.29*(J10^0.5)*100*V145,2) -> 11443.06 | T147: Kg. | U147: =IF(N142<Q147,"OK","NG") -> OK
H148: Design Reinforcement
M149: As min1 = | N149: =ROUND((14/J12)*100*V145,2) -> 17.5 | P149: cm.2 | S149: # USE As Max | W149: = | X149: =MAX(N149:O150) -> 24.73 | AA149: cm.2
M150: As min2 = | N150: =ROUND((N141*100)/(J13*AE10*V145),2) -> 24.73 | P150: cm.2
M151: 0.002bt = | N151: =ROUND(0.002*(N134*100)*(V145),2) -> 14.4 | P151: cm.2
H152: # USE main-1 | L152: =IF($J$12=2400,"RB","DB") -> RB | N152: 9 | P152: mm. | Q152: @ | R152: 0.05 | T152: m. | V152: AS' | W152: = | X152: =ROUND((1/R152)*((((22/7)*(N152*0.1)^2)/4)),2) -> 12.73 | Z152: cm.2 | AB152: =IF(X149<X152,"OK","NG") -> NG | AD152: # USE main-2 | AH152: AS' | AI152: = | AJ152: =ROUND((1/R152)*((((22/7)*(N152*0.1)^2)/4))*2,2) -> 25.46 | AL152: cm.2 | AN152: =IF(X149<AJ152,"OK","NG") -> OK
H153: # USE temp-1 | L153: =IF($J$12=2400,"RB","DB") -> RB | N153: 9 | P153: mm. | Q153: @ | R153: 0.05 | T153: m. | V153: AS' | W153: = | X153: =ROUND((1/R153)*((((22/7)*(N153*0.1)^2)/4)),2) -> 12.73 | Z153: cm.2 | AB153: =IF(N151<X153,"OK","NG") -> NG | AD153: # USE temp-2 | AH153: AS' | AI153: = | AJ153: =ROUND((1/R153)*((((22/7)*(N153*0.1)^2)/4))*2,2) -> 25.46 | AL153: cm.2 | AN153: =IF(N151<AJ153,"OK","NG") -> OK

Sheet table
D1: fdfsdfddsdsdfsdfsdfsdfdfsdfsdfsdfsdf
B2: t | C2: w | D2: dfgdfgdfgdfg | E2: fc' | F2: fy | G2: Es,Ec | H2: Thic Cover RC | I2: Wh Cover RC | J2: RB | K2: 6 | L2: DB | M2: 10 | N2: fgdfgdfgdgwergfdgdfgdfgdfgdfg
B3: 4.5 | C3: 25 | D3: dfgdfgdfg | E3: 150 | F3: 2400 | G3: 2040000 | H3: 0.07 | I3: 0.3 | K3: 9 | M3: 12 | N3: 0.05
B4: 6 | C4: 32 | E4: 173 | F4: 3000 | G4: 2100000 | H4: 0.1 | I4: 0.4 | K4: 12 | M4: 16 | N4: 0.07
B5: 8 | C5: 38 | D5: 3 | E5: 180 | F5: 4000 | H5: 0.12 | M5: 20 | N5: dfdfdf
B6: 9 | C6: 44 | D6: 3.5 | E6: 200 | F6: 5000 | H6: 0.15 | N6: 0.125
B7: 12 | C7: 50 | D7: 4 | E7: 240 | N7: 0.15
B8: 16 | C8: 65 | D8: 4.5 | E8: 250 | N8: 0.175
C9: 75 | D9: 5 | E9: 280 | N9: 0.2
C10: 90 | D10: 5.5 | E10: 300 | N10: 0.25
C11: 100 | D11: 6 | E11: 325 | N11: 0.3
E12: 350 | N12: 0.35
